bitfinex-derivatives/quotes_BTCF0:USTF0_20250620
["timestamp","ask_amount","ask_price","bid_price","bid_amount"]
[1750434672904,0.79336252,104440.0,104430.0,1.3663981]
[1750434673104,0.79336252,104440.0,104430.0,1.0055981]
[1750434673305,1.15416252,104440.0,104430.0,0.2593981]
[1750434673505,0.79336252,104440.0,104430.0,1.0055581]
[1750434673994,0.4024807,104440.0,104430.0,1.0055581]
[1750434674202,0.79336252,104440.0,104430.0,1.3663581]
[1750434675603,0.4024807,104440.0,104430.0,1.75723992]
[1750434675995,0.79336252,104440.0,104430.0,0.4287]
[1750434676204,1.15416252,104440.0,104430.0,0.2593981]
[1750434676707,1.15416252,104440.0,104430.0,0.0679]
[1750434677209,1.18736252,104440.0,104430.0,0.0356]
[1750434677409,1.21966252,104440.0,104430.0,0.60752]
[1750434677602,1.21966252,104440.0,104430.0,0.004]
[1750434678610,1.21966252,104440.0,104430.0,0.1954981]
[1750434678913,1.21966252,104440.0,104430.0,0.004]
[1750434679111,1.21966252,104440.0,104430.0,0.068]
[1750434680814,1.21966252,104440.0,104430.0,0.0361]
[1750434681705,1.21966252,104440.0,104430.0,0.004]
[1750434681911,2.27378777,104440.0,104430.0,0.00090046]
[1750434682115,2.27796184,104440.0,104430.0,0.00090046]
[1750434682318,1.88708002,104440.0,104430.0,0.00090046]
[1750434682506,2.27796184,104440.0,104430.0,0.00090046]
[1750434683422,0.191498,104430.0,104420.0,0.03190003]
[1750434683613,1.58646164,104430.0,104420.0,0.03190003]
[1750434685115,1.19657982,104430.0,104420.0,0.03290003]
[1750434685413,1.58746164,104430.0,104420.0,0.03290003]
[1750434686714,1.58746164,104430.0,104420.0,0.00100003]
[1750434688419,0.805698,104430.0,104420.0,0.00100003]
[1750434688620,1.58746164,104430.0,104420.0,0.00100003]
[1750434690719,1.77898964,104430.0,104420.0,0.00100003]
[1750434691120,1.66418891,104430.0,104420.0,0.00100003]
[1750434691425,2.27102891,104430.0,104420.0,0.00100003]
[1750434692420,0.88242527,104430.0,104420.0,0.19251633]
[1750434692624,0.382498,104430.0,104420.0,0.22481633]
[1750434692821,0.382498,104430.0,104420.0,0.25691633]
[1750434693021,0.77337982,104430.0,104420.0,0.25691633]
[1750434693323,0.382498,104430.0,104420.0,0.61771633]
[1750434694525,0.382498,104430.0,104420.0,0.25691633]
[1750434694827,0.77337982,104430.0,104420.0,0.25691633]
[1750434696634,1.13417982,104430.0,104420.0,0.25691633]
[1750434697011,1.16707982,104430.0,104420.0,0.25691633]
[1750434697216,0.80627982,104430.0,104420.0,0.25691633]
[1750434697418,1.16707982,104430.0,104420.0,0.25691633]
[1750434698326,1.13417982,104430.0,104420.0,0.25691633]
[1750434702321,1.13417982,104430.0,104420.0,0.06540003]
[1750434702624,1.52506164,104430.0,104420.0,0.03330003]
[1750434702925,1.58786164,104430.0,104420.0,0.03330003]
[1750434704427,1.59203571,104430.0,104420.0,0.03330003]
[1750434705329,1.59203571,104430.0,104420.0,0.00100003]
[1750434707519,1.58786164,104430.0,104420.0,0.00100003]
[1750434708527,1.64526507,104430.0,104420.0,0.00018679]
[1750434709127,1.72358348,104430.0,104420.0,0.00018679]
[1750434710429,0.1915163,104420.0,104410.0,0.09379612]
[1750434710628,0.1915163,104420.0,104410.0,0.0327]
[1750434710629,1.78227812,104420.0,104410.0,0.0327]
[1750434710824,0.1915347,104410.0,104400.0,0.09389612]
[1750434711024,1.15321652,104410.0,104400.0,0.0653]
[1750434712426,1.18581652,104410.0,104400.0,0.0653]
[1750434712632,0.99528182,104410.0,104400.0,0.0653]
[1750434712929,1.18681652,104410.0,104400.0,0.0653]
[1750434713129,1.21781652,104410.0,104400.0,0.0653]
[1750434717831,1.21781652,104410.0,104400.0,0.0326]
[1750434719838,0.191553,104400.0,104390.0,0.04313289]
[1750434720038,1.12323482,104400.0,104390.0,0.07343289]
[1750434720238,1.72803482,104400.0,104390.0,0.07343289]
[1750434721237,2.11891664,104400.0,104390.0,0.07343289]
[1750434721436,0.1915897,104380.0,104370.0,0.699408]
[1750434721735,0.78247152,104380.0,104370.0,0.403008]
[1750434722241,0.78247152,104380.0,104370.0,0.2114]
[1750434722425,0.78247152,104380.0,104370.0,0.4030081]
[1750434722625,0.78447152,104380.0,104370.0,0.2124]
[1750434722827,0.78447152,104380.0,104370.0,0.4040081]
[1750434723138,0.78247152,104380.0,104370.0,0.4060081]
[1750434723337,0.78447152,104380.0,104370.0,0.4070081]
[1750434723542,0.78447152,104380.0,104370.0,0.2154]
[1750434723746,0.3935897,104380.0,104370.0,0.4070081]
[1750434723932,0.78447152,104380.0,104370.0,0.4060081]
[1750434724430,1.14527152,104380.0,104370.0,0.4060081]
[1750434724633,1.14527152,104380.0,104370.0,0.41548639]
[1750434726536,1.74975152,104380.0,104370.0,0.07687829]
[1750434726734,1.74975152,104380.0,104370.0,0.09159123]
[1750434727044,1.74975152,104380.0,104370.0,0.08211294]
[1750434727645,1.74975152,104380.0,104370.0,0.0674]
[1750434727946,1.78195152,104380.0,104370.0,0.0674]
[1750434729241,1.17747152,104380.0,104370.0,0.259008]
[1750434729447,0.78447152,104380.0,104370.0,0.259008]
[1750434729844,0.78447152,104380.0,104370.0,0.26867592]
[1750434730034,1.14527152,104380.0,104370.0,0.26867592]
[1750434730238,0.78447152,104380.0,104370.0,0.26867592]
[1750434730736,1.14527152,104380.0,104370.0,0.26867592]
[1750434731148,1.14527152,104380.0,104370.0,0.07706792]
[1750434731449,1.14527152,104380.0,104370.0,0.26867572]
[1750434732041,0.78447152,104380.0,104370.0,0.26867572]
[1750434732540,1.28047152,104380.0,104370.0,0.26867572]
[1750434733749,1.64127152,104380.0,104370.0,0.0674]
[1750434734045,1.64127152,104380.0,104370.0,0.26840273]
[1750434734449,1.28047152,104380.0,104370.0,0.26840273]
[1750434736752,1.31117152,104380.0,104370.0,0.01239493]
[1750434736944,1.31117152,104380.0,104370.0,0.04499493]
[1750434737245,1.88439152,104380.0,104370.0,0.07819493]
[1750434737451,2.24519152,104380.0,104370.0,0.07819493]
[1750434738144,2.24519152,104380.0,104370.0,0.0688]
[1750434738347,0.1916078,104370.0,104360.0,0.01043442]
[1750434738546,1.53417144,104370.0,104360.0,0.01043442]
[1750434738850,1.53417144,104370.0,104360.0,0.03415818]
[1750434739057,1.59807144,104370.0,104360.0,0.03415818]
[1750434739437,1.59807144,104370.0,104340.0,0.5524629]
[1750434739438,0.1916445,104350.0,104340.0,0.5524629]
[1750434739638,0.1916445,104350.0,104340.0,0.3916]
[1750434739639,0.78252632,104350.0,104340.0,0.3916]
[1750434740043,0.78252632,104350.0,104340.0,0.5832629]
[1750434740249,0.78252632,104350.0,104340.0,0.0308]
[1750434740453,1.53420814,104350.0,104340.0,0.0308]
[1750434740654,0.1916629,104340.0,104330.0,0.00095845]
[1750434740854,0.7524629,104340.0,104330.0,0.00095845]
[1750434741042,1.53422654,104340.0,104330.0,0.03175845]
[1750434741246,1.53422654,104340.0,104330.0,0.04121714]
[1750434741445,1.53422654,104340.0,104330.0,0.07301714]
[1750434742251,2.13970654,104340.0,104330.0,0.07301714]
[1750434742448,1.38802472,104340.0,104330.0,0.28204526]
[1750434742645,0.3936629,104340.0,104330.0,0.20209984]
[1750434742844,1.14534472,104340.0,104330.0,0.20209984]
[1750434743045,1.14534472,104340.0,104330.0,0.26539984]
[1750434743654,1.53622654,104340.0,104330.0,0.07371714]
[1750434743953,1.56682654,104340.0,104330.0,0.07371714]
[1750434745049,1.14534472,104340.0,104330.0,0.28273977]
[1750434746658,0.002,104340.0,104330.0,1.03442159]
[1750434747049,0.002,104340.0,104330.0,1.82898959]
[1750434747250,0.182,104340.0,104330.0,1.82898959]
[1750434747451,0.002,104340.0,104330.0,1.82898959]
[1750434747651,0.192,104340.0,104330.0,1.22610959]
[1750434747853,0.77454612,104340.0,104330.0,1.58378777]
[1750434748159,0.77454612,104340.0,104330.0,1.39209977]
[1750434748959,0.3836643,104340.0,104330.0,1.39209977]
[1750434749464,0.77454612,104340.0,104330.0,1.39209977]
[1750434749961,0.58454612,104340.0,104330.0,1.39209977]
[1750434750163,0.76454612,104340.0,104330.0,1.39209977]
[1750434750957,0.002,104340.0,104330.0,1.78298159]
[1750434751153,0.002,104340.0,104330.0,1.97466959]
[1750434751658,0.182,104340.0,104330.0,1.97466959]
[1750434751961,0.002,104340.0,104330.0,2.01283887]
[1750434755365,0.3353662,104360.0,104350.0,0.191646]
[1750434755566,0.86833662,104360.0,104350.0,0.81180183]
[1750434755765,0.86833662,104360.0,104350.0,0.87680183]
[1750434756260,0.19,104360.0,104350.0,1.77404365]
[1750434756454,0.3816277,104360.0,104350.0,1.77404365]
[1750434756858,0.19,104360.0,104350.0,1.77404365]
[1750434757557,0.191,104360.0,104350.0,1.77404365]
[1750434758058,0.193,104360.0,104350.0,1.77504365]
[1750434758253,0.003,104360.0,104350.0,1.77504365]
[1750434758863,0.2874025,104380.0,104370.0,0.1916093]
[1750434759161,0.2916025,104380.0,104370.0,1.69133112]
[1750434759365,0.2916025,104380.0,104370.0,1.0007493]
[1750434759566,0.68248432,104380.0,104370.0,1.0007493]
[1750434759767,0.68248432,104380.0,104370.0,0.2527093]
[1750434759959,0.68248432,104380.0,104370.0,1.0007493]
[1750434760265,0.74378432,104380.0,104370.0,0.97942373]
[1750434760667,0.74778432,104380.0,104370.0,0.97942373]
[1750434760866,0.84628912,104380.0,104370.0,0.97942373]
[1750434761259,0.84728912,104380.0,104370.0,0.98042373]
[1750434761459,0.84828912,104380.0,104370.0,0.98042373]
[1750434761766,0.65668662,104380.0,104370.0,0.98042373]
[1750434762069,0.84428962,104380.0,104370.0,0.98042373]
[1750434763368,1.20508962,104380.0,104370.0,0.98042373]
[1750434763969,1.20508962,104380.0,104370.0,0.80442373]
[1750434764370,1.20508962,104380.0,104370.0,0.001]
[1750434765171,1.20508962,104380.0,104370.0,0.00021591]
[1750434770569,0.715703,104380.0,104370.0,0.00021591]
[1750434770771,1.80748962,104380.0,104370.0,0.00021591]
[1750434777171,1.86476268,104380.0,104370.0,0.00021591]
[1750434782382,1.86468268,104380.0,104370.0,0.00021591]
[1750434782884,1.766851,104380.0,104370.0,0.00021591]
[1750434783383,0.742431,104380.0,104370.0,0.19182541]
[1750434783589,1.103231,104380.0,104370.0,0.25642541]
[1750434783781,0.742431,104380.0,104370.0,0.25642541]
[1750434783978,1.103231,104380.0,104370.0,0.25642541]
[1750434784896,1.103231,104380.0,104370.0,0.24743888]
[1750434786188,1.04595794,104380.0,104370.0,0.24743888]
[1750434787196,0.68515794,104380.0,104370.0,0.24743888]
[1750434787787,1.04595794,104380.0,104370.0,0.24743888]
[1750434788201,0.68515794,104380.0,104370.0,0.24743888]
[1750434789298,0.293603,104380.0,104370.0,0.24743888]
[1750434789499,0.68515794,104380.0,104370.0,0.24743888]
[1750434790100,1.04595794,104380.0,104370.0,0.24743888]
[1750434790602,0.654403,104380.0,104370.0,0.24743888]
[1750434791101,1.04595794,104380.0,104370.0,0.24743888]
[1750434792203,1.04595794,104380.0,104370.0,0.0646]
[1750434792404,1.103231,104380.0,104370.0,0.0646]
[1750434792700,1.135531,104380.0,104370.0,0.0646]
[1750434793303,1.166331,104380.0,104370.0,0.0646]
[1750434794800,0.1916095,104370.0,104360.0,0.39408616]
[1750434795001,1.14396444,104370.0,104360.0,0.45938616]
[1750434795395,0.78316444,104370.0,104360.0,0.45938616]
[1750434796096,0.78416444,104370.0,104360.0,0.46338616]
[1750434797506,1.28016444,104370.0,104360.0,0.46338616]
[1750434800010,0.8886095,104370.0,104360.0,0.46338616]
[1750434800201,1.28016444,104370.0,104360.0,0.46338616]
[1750434801604,0.8886095,104370.0,104360.0,0.82418616]
[1750434801806,0.8886095,104370.0,104360.0,1.25391038]
[1750434802307,0.6886101,104370.0,104360.0,1.2157411]
[1750434802505,0.497,104370.0,104360.0,1.25391038]
[1750434803003,0.8986101,104370.0,104360.0,1.25391038]
[1750434803206,0.8986101,104370.0,104360.0,0.86235544]
[1750434803406,0.79416504,104370.0,104360.0,0.50155544]
[1750434803610,0.79416504,104370.0,104360.0,0.86235544]
[1750434804910,0.4026101,104370.0,104360.0,0.86235544]
[1750434805210,0.79416504,104370.0,104360.0,0.71723544]
[1750434805411,0.79416504,104370.0,104360.0,1.10359544]
[1750434808313,1.18571998,104370.0,104360.0,0.26182594]
[1750434808512,1.57711998,104370.0,104360.0,0.34998506]
[1750434808814,1.60791998,104370.0,104360.0,0.14892]
[1750434809013,2.20983998,104370.0,104360.0,0.004]
[1750434809204,2.26711304,104370.0,104360.0,0.004]
[1750434809513,1.98000316,104370.0,104360.0,0.004]
[1750434809713,2.76311304,104370.0,104360.0,0.004]
[1750434809914,2.76311304,104370.0,104360.0,0.1956285]
[1750434811514,2.70583998,104370.0,104360.0,0.1956285]
[1750434812816,2.70583998,104370.0,104360.0,0.004]
[1750434813118,2.70583998,104370.0,104360.0,0.1956285]
[1750434813311,1.71236504,104370.0,104360.0,0.004]
[1750434813516,2.31424504,104370.0,104360.0,0.1956285]
[1750434813912,2.3715181,104370.0,104360.0,0.1956285]
[1750434814621,2.31424504,104370.0,104360.0,0.1956285]
[1750434814818,2.3715181,104370.0,104360.0,0.2274285]
[1750434816616,1.9226901,104370.0,104360.0,0.2274285]
[1750434816822,2.31424504,104370.0,104360.0,0.2583285]
[1750434817920,0.8986101,104370.0,104360.0,0.6191285]
[1750434818116,1.29016504,104370.0,104360.0,0.2583285]
[1750434818619,1.65096504,104370.0,104360.0,0.2583285]
[1750434819214,1.29016504,104370.0,104360.0,0.2583285]
[1750434820116,1.65096504,104370.0,104360.0,0.2583285]
[1750434820813,2.07361998,104370.0,104360.0,0.0358]
[1750434821017,2.10541998,104370.0,104360.0,0.1956284]
[1750434821319,2.10541998,104370.0,104360.0,0.004]
[1750434821817,1.71386504,104370.0,104360.0,0.004]
[1750434822222,2.10541998,104370.0,104360.0,0.004]
[1750434822722,1.3223101,104370.0,104360.0,0.004]
[1750434822923,2.10541998,104370.0,104360.0,0.004]
[1750434823123,2.10541998,104370.0,104360.0,0.1956284]
[1750434823822,2.10541998,104370.0,104360.0,0.004]
[1750434824319,1.71386504,104370.0,104360.0,0.004]
[1750434824925,2.10541998,104370.0,104360.0,0.004]
[1750434825916,2.10541998,104370.0,104360.0,0.1956284]
[1750434826217,2.10541998,104370.0,104360.0,0.004]
[1750434826822,2.10641998,104370.0,104360.0,0.003]
[1750434827223,2.10641998,104370.0,104360.0,0.1946284]
[1750434827421,1.71486504,104370.0,104360.0,0.1946284]
[1750434828116,1.71486504,104370.0,104360.0,0.1916284]
[1750434828411,1.71586504,104370.0,104360.0,0.1926284]
[1750434828820,2.10741998,104370.0,104360.0,0.1926284]
[1750434829324,2.10741998,104370.0,104360.0,0.001]
[1750434829525,2.10741998,104370.0,104360.0,0.1926284]
[1750434833525,1.89376504,104370.0,104360.0,0.1926284]
[1750434833826,1.89376504,104370.0,104360.0,0.2567284]
[1750434834920,1.29216504,104370.0,104360.0,0.2567284]
[1750434835331,1.65296504,104370.0,104360.0,0.2567284]
[1750434835824,1.65296504,104370.0,104360.0,0.0651]
[1750434836025,1.68616504,104370.0,104360.0,0.001]
[1750434836227,1.71876504,104370.0,104360.0,0.001]
[1750434836429,2.11031998,104370.0,104360.0,0.001]
[1750434836618,2.16759304,104370.0,104360.0,0.001]
[1750434837729,2.16759304,104370.0,104360.0,0.0316]
[1750434838723,0.1916468,104350.0,104340.0,0.03816928]
[1750434838932,1.15400174,104350.0,104340.0,0.06876928]
[1750434839121,1.29840932,104350.0,104340.0,0.0306]
[1750434839831,2.00286156,104350.0,104330.0,0.05877774]
[1750434840130,1.33557498,104340.0,104330.0,0.08907774]
[1750434840321,2.1397495,104340.0,104330.0,0.00095845]
[1750434840521,0.1916835,104330.0,104320.0,0.0618]
[1750434840726,1.21197296,104330.0,104320.0,0.0303]
[1750434840926,1.26924602,104330.0,104320.0,0.0303]
[1750434842231,1.27124602,104330.0,104320.0,0.0313]
[1750434842430,1.21397296,104330.0,104320.0,0.0313]
[1750434843421,1.21397296,104330.0,104320.0,0.001]
[1750434844423,0.1917203,104310.0,104300.0,0.14559873]
[1750434844624,1.5683647,104310.0,104300.0,0.20639873]
[1750434845132,1.6315647,104310.0,104300.0,0.03165873]
[1750434845332,0.1917571,104290.0,104280.0,0.04018676]
[1750434845637,1.14673577,104290.0,104280.0,0.07028676]
[1750434847230,1.14673577,104290.0,104280.0,0.07128676]
[1750434848030,1.14873577,104290.0,104280.0,0.07228676]
[1750434849333,1.54093577,104290.0,104280.0,0.002]
[1750434849531,1.96299071,104290.0,104280.0,0.002]
[1750434850234,2.10767071,104290.0,104280.0,7e-08]
[1750434850629,2.29945471,104290.0,104280.0,7e-08]
[1750434851141,0.1917754,104280.0,104270.0,0.000959]
[1750434851439,2.22172901,104280.0,104270.0,0.000959]
[1750434852133,2.22172901,104280.0,104270.0,1e-07]
[1750434852634,2.23072901,104280.0,104270.0,1e-07]
[1750434852834,2.42879915,104280.0,104270.0,1e-07]
[1750434853030,2.42879915,104280.0,104270.0,0.00417417]
[1750434853236,0.1918122,104260.0,104250.0,0.07399649]
[1750434853436,2.19548221,104260.0,104250.0,0.07399649]
[1750434854028,2.27207086,104260.0,104250.0,0.07399649]
[1750434854541,2.33547086,104260.0,104250.0,0.07399649]
[1750434854930,0.1918306,104250.0,104240.0,0.00095928]
[1750434855132,1.29562061,104250.0,104240.0,0.00095928]
[1750434855346,1.79162061,104250.0,104240.0,0.00095928]
[1750434855842,0.1918674,104230.0,104220.0,0.22757546]
[1750434856034,0.3818674,104230.0,104220.0,0.22757546]
[1750434856337,0.3818674,104230.0,104220.0,0.27474126]
[1750434856635,0.17449835,104260.0,104240.0,0.0959208]
[1750434856841,0.13121638,104250.0,104240.0,1.38356439]
[1750434857034,0.3618306,104250.0,104240.0,1.47948739]
[1750434857235,0.3018306,104250.0,104240.0,0.98889738]
[1750434857431,0.14702953,104260.0,104240.0,1.28764839]
[1750434857637,0.47089803,104260.0,104250.0,0.5526306]
[1750434857830,0.47089803,104260.0,104250.0,0.3608]
[1750434858240,0.1918306,104250.0,104240.0,0.52317588]
[1750434858536,0.1918306,104250.0,104240.0,0.16237588]
[1750434858537,0.88242061,104250.0,104240.0,0.16237588]
[1750434859036,0.3918306,104250.0,104240.0,0.35422488]
[1750434859436,0.3918306,104250.0,104240.0,0.16237588]
[1750434859744,0.3938306,104250.0,104240.0,0.35522488]
[1750434860142,0.88442061,104250.0,104240.0,0.16754995]
[1750434861040,1.24522061,104250.0,104240.0,0.16754995]
[1750434861746,1.84846061,104250.0,104240.0,0.02278995]
[1750434861945,1.88146061,104250.0,104240.0,0.00517407]
[1750434862239,1.91176061,104250.0,104240.0,0.001]
[1750434862446,1.91276061,104250.0,104240.0,0.003]
[1750434863038,1.91276061,104250.0,104210.0,0.16319342]
[1750434863039,0.1918858,104220.0,104210.0,0.16319342]
[1750434863233,0.89247581,104220.0,104210.0,0.14571955]
[1750434863640,0.89247581,104220.0,104210.0,0.00095955]
[1750434864144,1.25327581,104220.0,104210.0,0.01030211]
[1750434864344,1.25327581,104220.0,104210.0,0.00495955]
[1750434864649,1.25327581,104220.0,104210.0,5e-08]
[1750434864843,1.32157581,104220.0,104210.0,5e-08]
[1750434865345,1.32157581,104220.0,104180.0,0.33771923]
[1750434865346,0.191941,104190.0,104180.0,0.33771923]
[1750434865647,0.191941,104190.0,104180.0,0.03483327]
[1750434865648,0.78253101,104190.0,104180.0,0.03483327]
[1750434865841,1.14333101,104190.0,104180.0,0.01483327]
[1750434866042,1.14333101,104190.0,104180.0,0.01555165]
[1750434866244,1.14333101,104190.0,104180.0,0.00095983]
[1750434866443,1.22185026,104190.0,104180.0,0.00135983]
[1750434866641,0.73126025,104190.0,104180.0,0.00135983]
[1750434866841,1.28815026,104190.0,104180.0,0.00095983]
[1750434867043,1.28815026,104190.0,104180.0,0.00135983]
[1750434867252,1.89687026,104190.0,104180.0,0.00095983]
[1750434867438,1.40628025,104190.0,104180.0,0.00435983]
[1750434867638,1.89687026,104190.0,104180.0,0.00435983]
[1750434867938,1.83269026,104190.0,104180.0,0.00435983]
[1750434868142,1.34210025,104190.0,104180.0,0.00135983]
[1750434868349,1.40720025,104190.0,104180.0,0.00135983]
[1750434868551,1.89779026,104190.0,104180.0,0.00135983]
[1750434869049,1.34490025,104190.0,104180.0,0.00135983]
[1750434869349,1.83549026,104190.0,104180.0,0.00135983]
[1750434869546,1.22585026,104190.0,104180.0,0.00095983]
[1750434869745,1.34494025,104190.0,104180.0,0.00135983]
[1750434869953,1.86803026,104190.0,104180.0,0.00135983]
[1750434870349,1.90103026,104190.0,104180.0,0.00135983]
[1750434870739,1.90103026,104190.0,104180.0,0.00095983]
[1750434870948,1.29135026,104190.0,104180.0,0.00135983]
[1750434871146,1.25835026,104190.0,104180.0,0.00135983]
[1750434871348,0.73526025,104190.0,104180.0,0.19331933]
[1750434871550,0.73526025,104190.0,104180.0,0.06305983]
[1750434871754,1.22585026,104190.0,104180.0,0.25501933]
[1750434871954,1.22585026,104190.0,104180.0,0.06305983]
[1750434872154,0.73526025,104190.0,104180.0,0.25501933]
[1750434872454,1.22585026,104190.0,104180.0,0.06305983]
[1750434872645,1.22585026,104190.0,104180.0,0.25501933]
[1750434872845,0.73526025,104190.0,104180.0,0.06305983]
[1750434873043,1.22585026,104190.0,104180.0,0.06305983]
[1750434873446,1.22585026,104190.0,104180.0,0.03275983]
[1750434873647,1.25775026,104190.0,104180.0,0.03235983]
[1750434873848,1.28945026,104190.0,104180.0,0.00095983]
[1750434874044,0.79886025,104190.0,104180.0,0.00135983]
[1750434874258,1.28945026,104190.0,104180.0,0.03305983]
[1750434874555,1.25775026,104190.0,104180.0,0.06545983]
[1750434874961,1.22585026,104190.0,104180.0,0.25741933]
[1750434875259,0.73526025,104190.0,104180.0,0.25741933]
[1750434875460,0.73526025,104190.0,104180.0,0.2615934]
[1750434876460,0.73526025,104190.0,104180.0,2.7821934]
[1750434877464,0.73526025,104190.0,104180.0,2.5902339]
[1750434877660,1.22585026,104190.0,104180.0,2.5902339]
[1750434878060,1.25685026,104190.0,104180.0,2.5902339]
[1750434878262,1.25685026,104190.0,104180.0,2.5898339]
[1750434878565,1.25685026,104190.0,104180.0,2.5902339]
[1750434878761,1.28695026,104190.0,104180.0,2.5902339]
[1750434881467,1.30939548,104190.0,104180.0,2.5261339]
[1750434881660,1.30939548,104190.0,104180.0,2.5257339]
[1750434881968,1.30939548,104190.0,104180.0,2.5261339]
[1750434882965,1.24829548,104190.0,104180.0,2.5261339]
[1750434883172,1.86301548,104190.0,104180.0,2.5915339]
[1750434883469,1.86301548,104190.0,104180.0,2.62015404]
[1750434883673,1.86301548,104190.0,104180.0,2.60538773]
[1750434884272,1.86301548,104190.0,104180.0,2.606309]
[1750434884462,1.86301548,104190.0,104180.0,2.6053697]
[1750434884664,0.75770547,104190.0,104180.0,2.7973291]
[1750434884865,0.75770547,104190.0,104180.0,2.6053697]
[1750434885066,1.24829548,104190.0,104180.0,2.60630897]
[1750434885461,1.24829548,104190.0,104180.0,2.62012003]
[1750434885765,0.75770547,104190.0,104180.0,2.62012003]
[1750434885966,1.24829548,104190.0,104180.0,2.62012003]
[1750434887059,1.24829548,104190.0,104180.0,2.55472003]
[1750434887257,0.82030547,104190.0,104180.0,2.5718621]
[1750434887463,1.31089548,104190.0,104180.0,2.55805104]
[1750434887670,1.31089548,104190.0,104180.0,2.59045104]
[1750434888168,1.31089548,104190.0,104180.0,2.62105104]
[1750434888369,1.27989548,104190.0,104180.0,2.60627597]
[1750434889158,1.25745026,104190.0,104180.0,2.60627597]
[1750434889675,1.22585026,104190.0,104180.0,2.60627597]
[1750434889871,1.22585026,104190.0,104180.0,2.5891339]
[1750434891074,1.22585026,104190.0,104180.0,3.2025339]
[1750434891276,0.656741,104190.0,104180.0,3.3944933]
[1750434892170,0.656741,104190.0,104180.0,3.88508331]
[1750434892376,0.295941,104190.0,104180.0,3.3944933]
[1750434892574,0.295941,104190.0,104180.0,3.7552933]
[1750434892964,0.295941,104190.0,104180.0,4.24588331]
[1750434893370,0.295941,104190.0,104180.0,3.7552933]
[1750434893679,1.14733101,104190.0,104180.0,3.3508939]
[1750434893872,0.295941,104190.0,104180.0,3.5428533]
[1750434894176,0.295941,104190.0,104180.0,3.5424533]
[1750434894674,0.295941,104190.0,104180.0,3.5428533]
[1750434894873,0.295941,104190.0,104180.0,3.5428133]
[1750434895076,0.656741,104190.0,104180.0,3.5428133]
[1750434895376,0.295941,104190.0,104180.0,3.5428133]
[1750434895877,0.295941,104190.0,104180.0,3.5429133]
[1750434897178,0.656741,104190.0,104180.0,3.5429133]
[1750434897377,0.656741,104190.0,104180.0,3.3511939]
[1750434897676,1.14733101,104190.0,104180.0,2.5892339]
[1750434897880,1.14733101,104190.0,104180.0,3.5431533]
[1750434898075,1.14733101,104190.0,104180.0,3.3511939]
[1750434898280,1.14733101,104190.0,104180.0,3.5431536]
[1750434898674,1.14733101,104190.0,104180.0,3.3511939]
[1750434898878,0.78653101,104190.0,104180.0,3.5431536]
[1750434899079,0.295941,104190.0,104180.0,3.3511939]
[1750434899281,0.656741,104190.0,104180.0,3.3511939]
[1750434899482,1.14733101,104190.0,104180.0,3.3511939]
[1750434899679,0.656741,104190.0,104180.0,3.3511939]
[1750434899882,0.295941,104190.0,104180.0,3.5431536]
[1750434900183,0.295941,104190.0,104180.0,3.9039536]
[1750434900390,0.295941,104190.0,104180.0,3.7351216]
[1750434900683,0.295941,104190.0,104180.0,3.5431536]
[1750434900986,0.656741,104190.0,104180.0,3.5431536]
[1750434902586,0.295941,104190.0,104180.0,3.9039536]
[1750434902783,0.2959413,104190.0,104180.0,4.59483161]
[1750434902976,0.2959413,104190.0,104180.0,3.9122736]
[1750434903286,0.2959413,104190.0,104180.0,3.5514736]
[1750434903680,0.78653131,104190.0,104180.0,3.5515136]
[1750434903988,0.2959413,104190.0,104180.0,3.5515136]
[1750434904188,0.2959413,104190.0,104180.0,3.5511136]
[1750434904383,0.2959413,104190.0,104180.0,3.5515136]
[1750434907894,0.2959413,104190.0,104180.0,2.7811936]
[1750434908090,0.2959413,104190.0,104180.0,3.5506736]
[1750434908488,0.104,104190.0,104180.0,3.1419936]
[1750434908787,0.104,104190.0,104180.0,4.40198361]
[1750434908788,0.2959413,104190.0,104180.0,4.40198361]
[1750434909394,0.2959413,104190.0,104180.0,3.5505936]
[1750434909595,0.2959413,104190.0,104180.0,3.9113936]
[1750434910598,0.31848491,104190.0,104180.0,3.1419936]
[1750434910796,0.31848491,104190.0,104180.0,2.7811936]
[1750434911896,0.31848491,104190.0,104180.0,3.5503936]
[1750434912296,0.31848491,104190.0,104180.0,2.7811936]
[1750434912496,0.67928491,104190.0,104180.0,3.5503936]
[1750434912701,0.67928491,104190.0,104180.0,3.5499536]
[1750434912895,0.31848491,104190.0,104180.0,3.5499536]
[1750434913398,1.16987492,104190.0,104180.0,3.5499136]
[1750434913601,0.31848491,104190.0,104180.0,3.5499136]
[1750434913786,0.31848491,104190.0,104180.0,3.9103136]
[1750434913993,0.31848491,104190.0,104180.0,4.40130361]
[1750434915895,0.12654361,104190.0,104180.0,4.59327161]
[1750434916095,0.104,104190.0,104180.0,4.16020682]
[1750434916294,0.004,104190.0,104180.0,4.68079683]
[1750434916497,0.004,104190.0,104180.0,4.54020682]
[1750434916692,0.46610409,104230.0,104210.0,0.1919045]
[1750434916896,0.51039004,104230.0,104220.0,0.8411861]
[1750434917596,0.51039004,104230.0,104220.0,0.85856034]
[1750434918187,0.51139004,104230.0,104220.0,0.86910095]
[1750434918786,0.51139004,104230.0,104220.0,0.87010095]
[1750434919795,0.51139004,104230.0,104220.0,0.28390095]
[1750434919999,0.51139004,104230.0,104220.0,1.05174095]
[1750434921100,1.36278005,104230.0,104220.0,0.01937424]
[1750434921306,1.86787605,104230.0,104220.0,0.002]
[1750434921498,1.92521044,104230.0,104220.0,0.002]
[1750434921798,0.1919045,104210.0,104200.0,0.01737921]
[1750434922005,1.26585745,104210.0,104200.0,0.01737921]
[1750434922202,1.29585745,104210.0,104200.0,0.01737921]
[1750434922704,0.80526744,104210.0,104200.0,0.01737921]
[1750434922909,1.29585745,104210.0,104200.0,0.01737921]
[1750434924507,0.77826744,104210.0,104200.0,0.01737921]
[1750434924708,0.93805745,104210.0,104200.0,0.24050211]
[1750434925005,0.45146744,104210.0,104200.0,0.27290211]
[1750434925597,1.30285745,104210.0,104200.0,0.27290211]
[1750434925802,1.30285745,104210.0,104200.0,0.08097921]
[1750434926099,1.30285745,104210.0,104200.0,0.04857921]
[1750434926305,1.33505745,104210.0,104200.0,0.04857921]
[1750434927905,0.84446744,104210.0,104200.0,0.01737921]
[1750434928095,1.33505745,104210.0,104200.0,0.01737921]
[1750434928296,0.1919229,104200.0,104190.0,0.2537288]
[1750434928491,0.80808584,104200.0,104190.0,1.03982901]
[1750434928704,1.29867585,104200.0,104190.0,1.03942901]
[1750434929406,1.29867585,104200.0,104190.0,1.03982901]
[1750434929806,0.80808584,104200.0,104190.0,1.03982901]
[1750434930001,1.29867585,104200.0,104190.0,1.03982901]
[1750434930307,1.30067585,104200.0,104190.0,1.03982901]
[1750434930509,1.30167585,104200.0,104190.0,1.03982901]
[1750434931094,0.77828584,104200.0,104190.0,1.03982901]
[1750434931302,1.26887585,104200.0,104190.0,1.03982901]